[Event "November 21 Late 2023"]
[Site "https://www.chess.com"]
[Date "2023.11.21"]
[Round "2"]
[White "Pace, Christopher"]
[Black "Mirza, Diana"]
[Result "1-0"]
[Board "167"]
[TimeControl "180+1"]
[WhiteFideId "2610167"]
[BlackFideId "2503999"]
[WhiteElo "2430"]
[BlackElo "1813"]
[WhiteTeam "CAN"]
[BlackTeam "IRL"]
[WhiteClock "0:02:18"]
[BlackClock "0:01:44"]

1. e4 {[%clk 0:03:00]}  c5 {[%clk 0:02:54]} 2. Nf3 {[%clk 0:02:59]}  Nc6 {[%clk 0:02:53]} 3. d4 {[%clk 0:02:59]}  cxd4 {[%clk 0:02:53]} 4. Nxd4 {[%clk 0:03:00]}  e6 {[%clk 0:02:51]} 5. Nc3 {[%clk 0:02:56]}  a6 {[%clk 0:02:40]} 6. a3 {[%clk 0:02:54]}  Qc7 {[%clk 0:02:36]} 7. Be3 {[%clk 0:02:48]}  Nf6 {[%clk 0:02:36]} 8. Be2 {[%clk 0:02:44]}  Be7 {[%clk 0:02:34]} 9. O-O {[%clk 0:02:43]}  O-O {[%clk 0:02:35]} 10. f4 {[%clk 0:02:44]}  Nxd4 {[%clk 0:02:31]} 11. Qxd4 {[%clk 0:02:40]}  b5 {[%clk 0:02:29]} 12. e5 {[%clk 0:02:39]}  Ne8 {[%clk 0:02:22]} 13. Rad1 {[%clk 0:02:31]}  d5 {[%clk 0:02:19]} 14. f5 {[%clk 0:02:29]}  exf5 {[%clk 0:02:16]} 15. Nxd5 {[%clk 0:02:29]}  Qb7 {[%clk 0:02:07]} 16. Bf3 {[%clk 0:02:20]}  Qd7 {[%clk 0:01:55]} 17. Nxe7+ {[%clk 0:02:17]}  Qxe7 {[%clk 0:01:55]} 18. Bxa8 {[%clk 0:02:18]}  Nc7 {[%clk 0:01:50]} 19. Bf3 {[%clk 0:02:18]}  Be6 {[%clk 0:01:44]} 20. Qd6 {[%clk 0:02:18]} 1-0

[Event "November 21 Late 2023"]
[Site "https://www.chess.com"]
[Date "2023.11.21"]
[Round "2"]
[White "katharinareinecke"]
[Black "Arnold, Ken"]
[Result "0-1"]
[Board "168"]
[TimeControl "180+1"]
[BlackFideId "2056836"]
[WhiteElo "1971"]
[BlackElo "2430"]
[BlackTeam "USA"]
[WhiteClock "0:00:17"]
[BlackClock "0:00:33"]

1. d4 {[%clk 0:03:00]}  Nf6 {[%clk 0:02:58]} 2. c4 {[%clk 0:03:00]}  e6 {[%clk 0:02:58]} 3. Nf3 {[%clk 0:03:00]}  d5 {[%clk 0:02:58]} 4. g3 {[%clk 0:02:58]}  Bb4+ {[%clk 0:02:56]} 5. Bd2 {[%clk 0:02:57]}  Qe7 {[%clk 0:02:54]} 6. Bg2 {[%clk 0:02:56]}  O-O {[%clk 0:02:54]} 7. O-O {[%clk 0:02:55]}  b6 {[%clk 0:02:53]} 8. Nc3 {[%clk 0:02:53]}  Bb7 {[%clk 0:02:51]} 9. cxd5 {[%clk 0:02:50]}  Nxd5 {[%clk 0:02:48]} 10. Rc1 {[%clk 0:02:46]}  Nxc3 {[%clk 0:02:45]} 11. bxc3 {[%clk 0:02:46]}  Ba3 {[%clk 0:02:45]} 12. Rb1 {[%clk 0:02:22]}  Nd7 {[%clk 0:02:38]} 13. Qc2 {[%clk 0:01:54]}  Nf6 {[%clk 0:02:32]} 14. Ne5 {[%clk 0:01:53]}  Bxg2 {[%clk 0:02:26]} 15. Kxg2 {[%clk 0:01:54]}  c5 {[%clk 0:02:19]} 16. Rb3 {[%clk 0:01:03]}  cxd4 {[%clk 0:02:16]} 17. cxd4 {[%clk 0:01:04]}  Rac8 {[%clk 0:02:13]} 18. Qd3 {[%clk 0:01:00]}  Bd6 {[%clk 0:02:07]} 19. Rc1 {[%clk 0:00:53]}  Rxc1 {[%clk 0:02:04]} 20. Bxc1 {[%clk 0:00:53]}  Rc8 {[%clk 0:01:50]} 21. Ba3 {[%clk 0:00:49]}  Bxa3 {[%clk 0:01:39]} 22. Rxa3 {[%clk 0:00:50]}  g6 {[%clk 0:01:25]} 23. e3 {[%clk 0:00:50]}  Nd5 {[%clk 0:01:21]} 24. Qa6 {[%clk 0:00:47]}  Rc7 {[%clk 0:01:20]} 25. Qa4 {[%clk 0:00:43]}  Nc3 {[%clk 0:01:11]} 26. Qb3 {[%clk 0:00:41]}  Ne4 {[%clk 0:01:08]} 27. Qd3 {[%clk 0:00:40]}  Nd6 {[%clk 0:01:04]} 28. h4 {[%clk 0:00:36]}  Kg7 {[%clk 0:01:02]} 29. Qd2 {[%clk 0:00:35]}  Nc4 {[%clk 0:00:55]} 30. Nxc4 {[%clk 0:00:35]}  Rxc4 {[%clk 0:00:54]} 31. Qb2 {[%clk 0:00:35]}  Qb7+ {[%clk 0:00:41]} 32. d5+ {[%clk 0:00:34]}  f6 {[%clk 0:00:36]} 33. Rd3 {[%clk 0:00:24]}  exd5 {[%clk 0:00:37]} 34. Qb5 {[%clk 0:00:20]}  Rc5 {[%clk 0:00:35]} 35. Qe8 {[%clk 0:00:19]}  d4+ {[%clk 0:00:35]} 36. Kg1 {[%clk 0:00:18]}  Rc1+ {[%clk 0:00:33]} 37. Kh2 {[%clk 0:00:17]}  Rh1# {[%clk 0:00:33]} 0-1

[Event "November 21 Late 2023"]
[Site "https://www.chess.com"]
[Date "2023.11.21"]
[Round "2"]
[White "Shohat, Yotam"]
[Black "Dias, Joao Batista"]
[Result "0-1"]
[Board "169"]
[TimeControl "180+1"]
[WhiteFideId "2813955"]
[BlackFideId "2108240"]
[WhiteElo "2226"]
[BlackElo "1907"]
[WhiteTeam "ISR"]
[BlackTeam "BRA"]
[WhiteClock "0:00:00"]
[BlackClock "0:01:53"]

1. e4 {[%clk 0:02:44]}  e5 {[%clk 0:02:59]} 2. Nf3 {[%clk 0:02:41]}  Nc6 {[%clk 0:02:59]} 3. g3 {[%clk 0:02:41]}  Nf6 {[%clk 0:02:58]} 4. d3 {[%clk 0:02:35]}  Be7 {[%clk 0:02:57]} 5. Bg2 {[%clk 0:02:34]}  O-O {[%clk 0:02:57]} 6. O-O {[%clk 0:02:35]}  h6 {[%clk 0:02:57]} 7. Nc3 {[%clk 0:02:33]}  d6 {[%clk 0:02:57]} 8. h3 {[%clk 0:02:32]}  a6 {[%clk 0:02:57]} 9. d4 {[%clk 0:02:31]}  Nxd4 {[%clk 0:02:56]} 10. Nxd4 {[%clk 0:02:32]}  exd4 {[%clk 0:02:57]} 11. Qxd4 {[%clk 0:02:32]}  Be6 {[%clk 0:02:57]} 12. Be3 {[%clk 0:02:26]}  Rb8 {[%clk 0:02:56]} 13. Rad1 {[%clk 0:02:24]}  Qc8 {[%clk 0:02:54]} 14. Kh2 {[%clk 0:02:24]}  Re8 {[%clk 0:02:53]} 15. f4 {[%clk 0:02:24]}  Bd7 {[%clk 0:02:50]} 16. e5 {[%clk 0:02:21]}  Nh7 {[%clk 0:02:37]} 17. Nd5 {[%clk 0:02:21]}  Bf8 {[%clk 0:02:31]} 18. exd6 {[%clk 0:02:13]}  Bxd6 {[%clk 0:02:31]} 19. Bd2 {[%clk 0:02:00]}  Bc6 {[%clk 0:02:25]} 20. Bc3 {[%clk 0:01:58]}  Bf8 {[%clk 0:02:21]} 21. Rde1 {[%clk 0:01:36]}  Qd7 {[%clk 0:02:03]} 22. Qc4 {[%clk 0:00:00]}  Rbd8 {[%clk 0:01:53]} 0-1

[Event "November 21 Late 2023"]
[Site "https://www.chess.com"]
[Date "2023.11.21"]
[Round "2"]
[White "VitaliyChayka"]
[Black "Ivanov, Aleksandr"]
[Result "0-1"]
[Board "170"]
[TimeControl "180+1"]
[BlackFideId "2092980"]
[WhiteElo "2430"]
[BlackElo "1926"]
[BlackTeam "USA"]
[WhiteClock "0:00:08"]
[BlackClock "0:00:07"]

1. d4 {[%clk 0:03:00]}  d5 {[%clk 0:02:56]} 2. Bf4 {[%clk 0:03:01]}  Nf6 {[%clk 0:02:52]} 3. e3 {[%clk 0:03:01]}  e6 {[%clk 0:02:52]} 4. Nf3 {[%clk 0:03:01]}  Bd6 {[%clk 0:02:51]} 5. Bg3 {[%clk 0:03:01]}  O-O {[%clk 0:02:50]} 6. Nbd2 {[%clk 0:03:01]}  b6 {[%clk 0:02:50]} 7. c3 {[%clk 0:03:00]}  Bb7 {[%clk 0:02:49]} 8. Bd3 {[%clk 0:02:57]}  Nc6 {[%clk 0:02:48]} 9. Ne5 {[%clk 0:02:53]}  Ne7 {[%clk 0:02:48]} 10. Qf3 {[%clk 0:02:37]}  c5 {[%clk 0:02:41]} 11. O-O {[%clk 0:02:32]}  Rc8 {[%clk 0:02:40]} 12. a4 {[%clk 0:02:31]}  a6 {[%clk 0:02:34]} 13. Bh4 {[%clk 0:02:25]}  Ng6 {[%clk 0:02:25]} 14. Qh3 {[%clk 0:02:14]}  Be7 {[%clk 0:02:08]} 15. Bg3 {[%clk 0:02:10]}  Ne4 {[%clk 0:02:00]} 16. Ndf3 {[%clk 0:01:56]}  Bf6 {[%clk 0:01:35]} 17. Nxg6 {[%clk 0:01:54]}  hxg6 {[%clk 0:01:34]} 18. Ne5 {[%clk 0:01:53]}  Nxg3 {[%clk 0:01:11]} 19. hxg3 {[%clk 0:01:45]}  Bxe5 {[%clk 0:01:11]} 20. dxe5 {[%clk 0:01:46]}  d4 {[%clk 0:00:59]} 21. exd4 {[%clk 0:01:46]}  cxd4 {[%clk 0:00:58]} 22. c4 {[%clk 0:01:46]}  Qc7 {[%clk 0:00:40]} 23. f4 {[%clk 0:01:45]}  Qc5 {[%clk 0:00:26]} 24. Rae1 {[%clk 0:01:04]}  b5 {[%clk 0:00:23]} 25. axb5 {[%clk 0:00:58]}  axb5 {[%clk 0:00:23]} 26. Kf2 {[%clk 0:00:49]}  Rfd8 {[%clk 0:00:17]} 27. Rh1 {[%clk 0:00:45]}  Kf8 {[%clk 0:00:16]} 28. Qh8+ {[%clk 0:00:41]}  Ke7 {[%clk 0:00:16]} 29. Qxg7 {[%clk 0:00:42]}  Rf8 {[%clk 0:00:14]} 30. cxb5 {[%clk 0:00:39]}  Qd5 {[%clk 0:00:13]} 31. Be4 {[%clk 0:00:24]}  Rc2+ {[%clk 0:00:14]} 32. Kf3 {[%clk 0:00:24]}  Qb3+ {[%clk 0:00:13]} 33. Kg4 {[%clk 0:00:24]}  Bxe4 {[%clk 0:00:10]} 34. Rxe4 {[%clk 0:00:25]}  Rxg2 {[%clk 0:00:10]} 35. Rh3 {[%clk 0:00:19]}  Qd3 {[%clk 0:00:07]} 36. Re1 {[%clk 0:00:13]}  Rf2 {[%clk 0:00:07]} 37. Ra1 {[%clk 0:00:11]}  Qf5+ {[%clk 0:00:06]} 38. Kh4 {[%clk 0:00:08]}  Qh5# {[%clk 0:00:07]} 0-1

[Event "November 21 Late 2023"]
[Site "https://www.chess.com"]
[Date "2023.11.21"]
[Round "2"]
[White "Thake, Conrad"]
[Black "Melikhov, Evgeny V."]
[Result "1-0"]
[Board "171"]
[TimeControl "180+1"]
[WhiteFideId "5602947"]
[BlackFideId "4122046"]
[WhiteElo "1685"]
[BlackElo "2165"]
[WhiteTeam "MLT"]
[BlackTeam "GRE"]
[WhiteClock "0:00:41"]
[BlackClock "0:00:00"]

1. e4 {[%clk 0:03:00]}  c5 {[%clk 0:02:57]} 2. Nf3 {[%clk 0:03:00]}  d6 {[%clk 0:02:56]} 3. d4 {[%clk 0:03:00]}  cxd4 {[%clk 0:02:56]} 4. Nxd4 {[%clk 0:02:59]}  Nf6 {[%clk 0:02:56]} 5. Nc3 {[%clk 0:02:59]}  a6 {[%clk 0:02:56]} 6. Be3 {[%clk 0:02:57]}  e5 {[%clk 0:02:52]} 7. Nb3 {[%clk 0:02:48]}  Be6 {[%clk 0:02:52]} 8. f3 {[%clk 0:02:48]}  Be7 {[%clk 0:02:51]} 9. Qd2 {[%clk 0:02:48]}  O-O {[%clk 0:02:51]} 10. O-O-O {[%clk 0:02:48]}  b5 {[%clk 0:02:52]} 11. g4 {[%clk 0:02:46]}  Nbd7 {[%clk 0:02:50]} 12. Kb1 {[%clk 0:02:37]}  Nb6 {[%clk 0:02:46]} 13. g5 {[%clk 0:02:37]}  Nh5 {[%clk 0:02:46]} 14. Nd5 {[%clk 0:02:22]}  Nxd5 {[%clk 0:02:38]} 15. exd5 {[%clk 0:02:22]}  Bf5 {[%clk 0:02:38]} 16. h4 {[%clk 0:02:19]}  Ng3 {[%clk 0:02:29]} 17. Rg1 {[%clk 0:02:19]}  Nxf1 {[%clk 0:02:29]} 18. Rdxf1 {[%clk 0:02:17]}  a5 {[%clk 0:02:27]} 19. h5 {[%clk 0:02:13]}  g6 {[%clk 0:02:04]} 20. hxg6 {[%clk 0:02:10]}  fxg6 {[%clk 0:01:59]} 21. Rh1 {[%clk 0:02:07]}  Rf7 {[%clk 0:01:56]} 22. Nc1 {[%clk 0:02:05]}  b4 {[%clk 0:01:30]} 23. Ne2 {[%clk 0:02:05]}  Rc8 {[%clk 0:01:24]} 24. Rc1 {[%clk 0:01:57]}  Qd7 {[%clk 0:00:36]} 25. Ng3 {[%clk 0:01:56]}  Qb5 {[%clk 0:00:33]} 26. Nxf5 {[%clk 0:01:54]}  Rxf5 {[%clk 0:00:33]} 27. Rcd1 {[%clk 0:01:47]}  a4 {[%clk 0:00:32]} 28. Rh3 {[%clk 0:01:39]}  b3 {[%clk 0:00:30]} 29. cxb3 {[%clk 0:01:35]}  axb3 {[%clk 0:00:30]} 30. a3 {[%clk 0:01:35]}  Rc2 {[%clk 0:00:27]} 31. Qd3 {[%clk 0:01:29]}  Qxd3 {[%clk 0:00:26]} 32. Rxd3 {[%clk 0:01:29]}  e4 {[%clk 0:00:24]} 33. Rxb3 {[%clk 0:01:26]}  Re2 {[%clk 0:00:21]} 34. fxe4 {[%clk 0:01:19]}  Rf1+ {[%clk 0:00:20]} 35. Ka2 {[%clk 0:01:19]}  Rg2 {[%clk 0:00:17]} 36. Rb8+ {[%clk 0:01:10]}  Rf8 {[%clk 0:00:15]} 37. Rxf8+ {[%clk 0:01:09]}  Bxf8 {[%clk 0:00:15]} 38. a4 {[%clk 0:01:07]}  Bg7 {[%clk 0:00:15]} 39. Bc1 {[%clk 0:01:04]}  Rg1 {[%clk 0:00:13]} 40. Kb1 {[%clk 0:01:02]}  Be5 {[%clk 0:00:10]} 41. Rf3 {[%clk 0:00:58]}  Re1 {[%clk 0:00:05]} 42. a5 {[%clk 0:00:53]}  Rxe4 {[%clk 0:00:04]} 43. Ra3 {[%clk 0:00:49]}  Re1 {[%clk 0:00:03]} 44. a6 {[%clk 0:00:49]}  Bf4 {[%clk 0:00:03]} 45. Rc3 {[%clk 0:00:45]}  Re4 {[%clk 0:00:03]} 46. Bxf4 {[%clk 0:00:41]}  Rxf4 {[%clk 0:00:03]} 47. Ra3 {[%clk 0:00:41]}  Rf8 {[%clk 0:00:03]} 48. a7 {[%clk 0:00:40]}  Ra8 {[%clk 0:00:03]} 49. b4 {[%clk 0:00:40]}  h5 {[%clk 0:00:02]} 50. b5 {[%clk 0:00:40]}  h4 {[%clk 0:00:00]} 51. b6 {[%clk 0:00:41]} 1-0

[Event "November 21 Late 2023"]
[Site "https://www.chess.com"]
[Date "2023.11.21"]
[Round "2"]
[White "Marcziter, Dmitrii"]
[Black "Vargas, Mauricio"]
[Result "1-0"]
[Board "174"]
[TimeControl "180+1"]
[WhiteFideId "13900765"]
[BlackFideId "4404572"]
[WhiteElo "2142"]
[BlackElo "1988"]
[WhiteTeam "GER"]
[BlackTeam "COL"]
[WhiteClock "0:00:33"]
[BlackClock "0:00:00"]

1. e4 {[%clk 0:02:40]}  d5 {[%clk 0:02:57]} 2. exd5 {[%clk 0:02:39]}  Qxd5 {[%clk 0:02:57]} 3. Nc3 {[%clk 0:02:39]}  Qa5 {[%clk 0:02:57]} 4. d4 {[%clk 0:02:38]}  c6 {[%clk 0:02:57]} 5. Bc4 {[%clk 0:02:37]}  Nf6 {[%clk 0:02:57]} 6. Nf3 {[%clk 0:02:33]}  Bg4 {[%clk 0:02:57]} 7. h3 {[%clk 0:02:03]}  Bh5 {[%clk 0:02:56]} 8. g4 {[%clk 0:02:03]}  Bg6 {[%clk 0:02:56]} 9. Ne5 {[%clk 0:02:03]}  e6 {[%clk 0:02:55]} 10. h4 {[%clk 0:01:59]}  Be4 {[%clk 0:02:53]} 11. Rg1 {[%clk 0:01:56]}  Bd5 {[%clk 0:02:53]} 12. Bd3 {[%clk 0:01:54]}  Bb4 {[%clk 0:02:41]} 13. Bd2 {[%clk 0:01:53]}  Nbd7 {[%clk 0:02:38]} 14. g5 {[%clk 0:01:52]}  Nxe5 {[%clk 0:02:25]} 15. dxe5 {[%clk 0:01:50]}  Nd7 {[%clk 0:02:09]} 16. a3 {[%clk 0:01:48]}  Be7 {[%clk 0:01:18]} 17. Qe2 {[%clk 0:01:38]}  O-O-O {[%clk 0:01:11]} 18. f4 {[%clk 0:01:23]}  Qb6 {[%clk 0:01:08]} 19. O-O-O {[%clk 0:01:19]}  Nc5 {[%clk 0:00:57]} 20. Be3 {[%clk 0:01:12]}  Nxd3+ {[%clk 0:00:57]} 21. Rxd3 {[%clk 0:01:10]}  Bc5 {[%clk 0:00:56]} 22. Bxc5 {[%clk 0:01:03]}  Qxc5 {[%clk 0:00:55]} 23. Rgd1 {[%clk 0:01:03]}  Qc4 {[%clk 0:00:48]} 24. Qd2 {[%clk 0:00:58]}  Rd7 {[%clk 0:00:41]} 25. Rd4 {[%clk 0:00:57]}  Qa6 {[%clk 0:00:39]} 26. Ne4 {[%clk 0:00:54]}  Rhd8 {[%clk 0:00:33]} 27. Nc5 {[%clk 0:00:47]}  Qb6 {[%clk 0:00:21]} 28. Nxd7 {[%clk 0:00:47]}  Rxd7 {[%clk 0:00:20]} 29. c4 {[%clk 0:00:44]}  Qc5 {[%clk 0:00:20]} 30. Qc3 {[%clk 0:00:37]}  Bxc4 {[%clk 0:00:00]} 31. Rxd7 {[%clk 0:00:33]} 1-0

[Event "November 21 Late 2023"]
[Site "https://www.chess.com"]
[Date "2023.11.21"]
[Round "3"]
[White "Stoyanov, Tsvetan"]
[Black "Nakamura, Hikaru"]
[Result "0-1"]
[Board "1"]
[TimeControl "180+1"]
[WhiteFideId "2917173"]
[BlackFideId "2016192"]
[WhiteElo "2390"]
[BlackElo "2874"]
[WhiteTeam "BUL"]
[BlackTeam "USA"]
[WhiteClock "0:01:22"]
[BlackClock "0:01:56"]

1. c4 {[%clk 0:02:59]}  b6 {[%clk 0:02:50]} 2. Nc3 {[%clk 0:02:57]}  Bb7 {[%clk 0:02:50]} 3. d4 {[%clk 0:02:57]}  e6 {[%clk 0:02:49]} 4. a3 {[%clk 0:02:57]}  Nf6 {[%clk 0:02:46]} 5. Nf3 {[%clk 0:02:56]}  d5 {[%clk 0:02:47]} 6. cxd5 {[%clk 0:02:52]}  Nxd5 {[%clk 0:02:47]} 7. Qc2 {[%clk 0:02:46]}  Nxc3 {[%clk 0:02:45]} 8. bxc3 {[%clk 0:02:46]}  Nd7 {[%clk 0:02:44]} 9. e4 {[%clk 0:02:41]}  Be7 {[%clk 0:02:44]} 10. Bd3 {[%clk 0:02:40]}  c5 {[%clk 0:02:44]} 11. O-O {[%clk 0:02:40]}  Qc7 {[%clk 0:02:41]} 12. Qe2 {[%clk 0:02:36]}  O-O {[%clk 0:02:41]} 13. a4 {[%clk 0:02:22]}  Rfd8 {[%clk 0:02:28]} 14. Ba3 {[%clk 0:02:21]}  Rac8 {[%clk 0:02:25]} 15. Rfc1 {[%clk 0:02:11]}  Bf8 {[%clk 0:02:16]} 16. h3 {[%clk 0:02:10]}  Qb8 {[%clk 0:02:12]} 17. Rab1 {[%clk 0:02:07]}  c4 {[%clk 0:02:11]} 18. Bxc4 {[%clk 0:01:57]}  Bxa3 {[%clk 0:02:10]} 19. Rd1 {[%clk 0:01:56]}  Bxe4 {[%clk 0:02:03]} 20. Qxe4 {[%clk 0:01:46]}  Rxc4 {[%clk 0:02:03]} 21. Qd3 {[%clk 0:01:30]}  Rdc8 {[%clk 0:02:01]} 22. d5 {[%clk 0:01:30]}  Rxc3 {[%clk 0:01:59]} 23. Qb5 {[%clk 0:01:22]}  Nf8 {[%clk 0:01:56]} 0-1

[Event "November 21 Late 2023"]
[Site "https://www.chess.com"]
[Date "2023.11.21"]
[Round "3"]
[White "Troff, Kayden"]
[Black "Nihal Sarin"]
[Result "1-0"]
[Board "3"]
[TimeControl "180+1"]
[WhiteFideId "2047896"]
[BlackFideId "25092340"]
[WhiteElo "2544"]
[BlackElo "2689"]
[WhiteTeam "USA"]
[BlackTeam "IND"]
[WhiteClock "0:00:04"]
[BlackClock "0:00:02"]

1. d4 {[%clk 0:03:00]}  d5 {[%clk 0:02:59]} 2. Nf3 {[%clk 0:03:01]}  e6 {[%clk 0:03:00]} 3. Bf4 {[%clk 0:03:01]}  Nf6 {[%clk 0:03:01]} 4. e3 {[%clk 0:03:01]}  Bd6 {[%clk 0:03:01]} 5. Ne5 {[%clk 0:03:01]}  O-O {[%clk 0:03:02]} 6. Nd2 {[%clk 0:03:02]}  c5 {[%clk 0:03:02]} 7. c3 {[%clk 0:03:02]}  Nc6 {[%clk 0:03:03]} 8. Bg3 {[%clk 0:03:02]}  Qc7 {[%clk 0:03:04]} 9. f4 {[%clk 0:03:03]}  b6 {[%clk 0:03:04]} 10. Bd3 {[%clk 0:03:02]}  Ne7 {[%clk 0:03:04]} 11. O-O {[%clk 0:03:02]}  a5 {[%clk 0:03:05]} 12. Bh4 {[%clk 0:03:02]}  Ba6 {[%clk 0:03:04]} 13. Bxa6 {[%clk 0:02:58]}  Rxa6 {[%clk 0:03:05]} 14. Bxf6 {[%clk 0:02:56]}  gxf6 {[%clk 0:03:06]} 15. Qg4+ {[%clk 0:02:54]}  Kh8 {[%clk 0:03:06]} 16. Nef3 {[%clk 0:02:54]}  Nf5 {[%clk 0:03:05]} 17. Rae1 {[%clk 0:02:53]}  cxd4 {[%clk 0:03:04]} 18. Nxd4 {[%clk 0:02:52]}  Rg8 {[%clk 0:03:03]} 19. Qh5 {[%clk 0:02:50]}  Nxd4 {[%clk 0:03:03]} 20. cxd4 {[%clk 0:02:46]}  Qc2 {[%clk 0:02:59]} 21. Re2 {[%clk 0:02:42]}  Ra7 {[%clk 0:02:56]} 22. b3 {[%clk 0:02:28]}  Qd3 {[%clk 0:02:47]} 23. Rc1 {[%clk 0:02:21]}  Ba3 {[%clk 0:02:39]} 24. Rc6 {[%clk 0:02:15]}  b5 {[%clk 0:02:13]} 25. Nf1 {[%clk 0:02:13]}  f5 {[%clk 0:02:07]} 26. Rec2 {[%clk 0:02:04]}  Bb4 {[%clk 0:01:26]} 27. Rc8 {[%clk 0:01:58]}  Bf8 {[%clk 0:00:56]} 28. Qh4 {[%clk 0:01:40]}  h6 {[%clk 0:00:26]} 29. R2c7 {[%clk 0:00:59]}  Rxc7 {[%clk 0:00:22]} 30. Rxc7 {[%clk 0:01:00]}  Qe2 {[%clk 0:00:20]} 31. Qf6+ {[%clk 0:00:41]}  Bg7 {[%clk 0:00:20]} 32. Qxf7 {[%clk 0:00:40]}  Qxa2 {[%clk 0:00:20]} 33. Qxe6 {[%clk 0:00:25]}  a4 {[%clk 0:00:17]} 34. bxa4 {[%clk 0:00:21]}  bxa4 {[%clk 0:00:18]} 35. Ra7 {[%clk 0:00:19]}  a3 {[%clk 0:00:15]} 36. Qd6 {[%clk 0:00:14]}  Qe2 {[%clk 0:00:13]} 37. Rxa3 {[%clk 0:00:12]}  Bf8 {[%clk 0:00:07]} 38. Qf6+ {[%clk 0:00:10]}  Bg7 {[%clk 0:00:07]} 39. Qe6 {[%clk 0:00:07]}  Bf8 {[%clk 0:00:05]} 40. Qf6+ {[%clk 0:00:04]}  Bg7 {[%clk 0:00:06]} 41. Qe6 {[%clk 0:00:04]}  Bf8 {[%clk 0:00:03]} 42. Qe5+ {[%clk 0:00:04]}  Bg7 {[%clk 0:00:03]} 43. Qxd5 {[%clk 0:00:03]}  Bf8 {[%clk 0:00:02]} 44. Ra8 {[%clk 0:00:04]}  Kg7 {[%clk 0:00:01]} 45. Ra7+ {[%clk 0:00:03]}  Kh8 {[%clk 0:00:02]} 46. Qe5+ {[%clk 0:00:04]}  Bg7 {[%clk 0:00:02]} 47. Qxf5 {[%clk 0:00:04]}  Bxd4 {[%clk 0:00:02]} 48. Qh7# {[%clk 0:00:04]} 1-0

[Event "November 21 Late 2023"]
[Site "https://www.chess.com"]
[Date "2023.11.21"]
[Round "3"]
[White "Schnaider, Ilan"]
[Black "Esipenko, Andrey"]
[Result "0-1"]
[Board "9"]
[TimeControl "180+1"]
[WhiteFideId "169013"]
[BlackFideId "24175439"]
[WhiteElo "2373"]
[BlackElo "2615"]
[WhiteTeam "ARG"]
[BlackTeam "FID"]
[WhiteClock "0:00:00"]
[BlackClock "0:00:44"]

1. e4 {[%clk 0:03:00]}  e5 {[%clk 0:02:54]} 2. Nf3 {[%clk 0:03:01]}  Nc6 {[%clk 0:02:54]} 3. Bc4 {[%clk 0:03:01]}  Nf6 {[%clk 0:02:50]} 4. d3 {[%clk 0:03:01]}  Be7 {[%clk 0:02:44]} 5. O-O {[%clk 0:02:59]}  O-O {[%clk 0:02:44]} 6. a4 {[%clk 0:03:00]}  d6 {[%clk 0:02:42]} 7. a5 {[%clk 0:03:00]}  Be6 {[%clk 0:02:41]} 8. a6 {[%clk 0:02:53]}  b6 {[%clk 0:02:40]} 9. Nbd2 {[%clk 0:02:47]}  Bxc4 {[%clk 0:02:31]} 10. Nxc4 {[%clk 0:02:48]}  Qc8 {[%clk 0:02:31]} 11. Ne3 {[%clk 0:02:47]}  Re8 {[%clk 0:02:30]} 12. c3 {[%clk 0:02:44]}  Bf8 {[%clk 0:02:27]} 13. b4 {[%clk 0:02:44]}  b5 {[%clk 0:02:21]} 14. Re1 {[%clk 0:02:37]}  Rb8 {[%clk 0:02:21]} 15. Nd5 {[%clk 0:02:31]}  Nxd5 {[%clk 0:02:21]} 16. exd5 {[%clk 0:02:32]}  Ne7 {[%clk 0:02:22]} 17. Qb3 {[%clk 0:02:32]}  Rb6 {[%clk 0:02:17]} 18. Qa2 {[%clk 0:02:22]}  Nf5 {[%clk 0:01:36]} 19. Bd2 {[%clk 0:02:19]}  c6 {[%clk 0:01:33]} 20. dxc6 {[%clk 0:01:45]}  Qxc6 {[%clk 0:01:27]} 21. c4 {[%clk 0:01:19]}  h6 {[%clk 0:01:26]} 22. Rec1 {[%clk 0:01:13]}  g5 {[%clk 0:01:14]} 23. h3 {[%clk 0:01:04]}  Bg7 {[%clk 0:01:12]} 24. cxb5 {[%clk 0:01:01]}  Qxb5 {[%clk 0:01:11]} 25. Rc7 {[%clk 0:01:02]}  Re7 {[%clk 0:01:11]} 26. Rc8+ {[%clk 0:00:49]}  Kh7 {[%clk 0:01:11]} 27. Qc2 {[%clk 0:00:39]}  Rxa6 {[%clk 0:01:01]} 28. Re1 {[%clk 0:00:28]}  Qb7 {[%clk 0:00:54]} 29. Nh2 {[%clk 0:00:10]}  Nd4 {[%clk 0:00:53]} 30. Qc4 {[%clk 0:00:06]}  d5 {[%clk 0:00:48]} 31. Qc5 {[%clk 0:00:05]}  Ra2 {[%clk 0:00:48]} 32. Be3 {[%clk 0:00:02]}  Rc2 {[%clk 0:00:47]} 33. Qxc2 {[%clk 0:00:01]}  Nxc2 {[%clk 0:00:47]} 34. Rxc2 {[%clk 0:00:02]}  Qxb4 {[%clk 0:00:46]} 35. Rec1 {[%clk 0:00:00]}  Qb5 {[%clk 0:00:44]} 0-1